[Event "Titled Tuesday Blitz February 21 Early 2023"]
[White "Dobrikov, Marco"]
[Black "Jimenez Jimenez, Leandro"]
[WhiteFideId "12950378"]
[BlackFideId "6415253"]
[WhiteElo "2269"]
[BlackElo "2146"]
[Result "1-0"]
[Round "01"]
[TimeControl "180+2"]
[Date "2023.02.21"]
[WhiteClock "0:00:24"]
[BlackClock "0:00:11"]

1. d4 {[%clk 0:02:57]}  d5 {[%clk 0:02:58]} 2. Bf4 {[%clk 0:02:58]}  Nf6 {[%clk 0:02:58]} 3. e3 {[%clk 0:02:58]}  c5 {[%clk 0:02:58]} 4. c3 {[%clk 0:02:58]}  Qb6 {[%clk 0:02:57]} 5. Qb3 {[%clk 0:02:58]}  c4 {[%clk 0:02:57]} 6. Qc2 {[%clk 0:02:57]}  Nc6 {[%clk 0:02:54]} 7. Nd2 {[%clk 0:02:56]}  g6 {[%clk 0:02:45]} 8. Ngf3 {[%clk 0:02:54]}  Bf5 {[%clk 0:02:44]} 9. Qc1 {[%clk 0:02:51]}  Bg7 {[%clk 0:02:44]} 10. Be2 {[%clk 0:02:52]}  Qd8 {[%clk 0:02:43]} 11. O-O {[%clk 0:02:52]}  b5 {[%clk 0:02:43]} 12. b3 {[%clk 0:02:48]}  O-O {[%clk 0:02:41]} 13. Ne5 {[%clk 0:02:46]}  Rc8 {[%clk 0:02:40]} 14. bxc4 {[%clk 0:02:41]}  bxc4 {[%clk 0:02:36]} 15. Qa3 {[%clk 0:02:39]}  Qa5 {[%clk 0:02:27]} 16. Qxa5 {[%clk 0:02:22]}  Nxa5 {[%clk 0:02:28]} 17. g4 {[%clk 0:01:59]}  Ne4 {[%clk 0:02:06]} 18. Rfd1 {[%clk 0:01:28]}  Nxc3 {[%clk 0:02:01]} 19. Re1 {[%clk 0:01:27]}  Nxe2+ {[%clk 0:01:59]} 20. Rxe2 {[%clk 0:01:28]}  Bxe5 {[%clk 0:01:56]} 21. Bxe5 {[%clk 0:01:23]}  Bxg4 {[%clk 0:01:56]} 22. f3 {[%clk 0:01:24]}  Bf5 {[%clk 0:01:56]} 23. e4 {[%clk 0:01:25]}  Be6 {[%clk 0:01:42]} 24. Bg3 {[%clk 0:01:18]}  Rfe8 {[%clk 0:01:29]} 25. Rc1 {[%clk 0:01:06]}  f6 {[%clk 0:01:17]} 26. Nf1 {[%clk 0:00:54]}  Kf7 {[%clk 0:01:11]} 27. Ne3 {[%clk 0:00:54]}  dxe4 {[%clk 0:01:12]} 28. fxe4 {[%clk 0:00:55]}  Bd7 {[%clk 0:00:55]} 29. Rf2 {[%clk 0:00:53]}  Bc6 {[%clk 0:00:46]} 30. d5 {[%clk 0:00:53]}  Bd7 {[%clk 0:00:47]} 31. e5 {[%clk 0:00:51]}  Bb5 {[%clk 0:00:43]} 32. Ng4 {[%clk 0:00:33]}  h5 {[%clk 0:00:38]} 33. Ne3 {[%clk 0:00:29]}  Kg7 {[%clk 0:00:36]} 34. d6 {[%clk 0:00:26]}  f5 {[%clk 0:00:34]} 35. Nd5 {[%clk 0:00:22]}  exd6 {[%clk 0:00:33]} 36. exd6 {[%clk 0:00:23]}  Bc6 {[%clk 0:00:22]} 37. Ne7 {[%clk 0:00:21]}  Be4 {[%clk 0:00:18]} 38. Be5+ {[%clk 0:00:20]}  Kf7 {[%clk 0:00:18]} 39. Rb2 {[%clk 0:00:20]}  Rcd8 {[%clk 0:00:16]} 40. h4 {[%clk 0:00:14]}  Ke6 {[%clk 0:00:16]} 41. Bf4 {[%clk 0:00:14]}  Bd3 {[%clk 0:00:10]} 42. Kf2 {[%clk 0:00:13]}  Rxd6 {[%clk 0:00:09]} 43. Bxd6 {[%clk 0:00:13]}  Kxd6 {[%clk 0:00:10]} 44. Nxg6 {[%clk 0:00:14]}  Nc6 {[%clk 0:00:07]} 45. Nf4 {[%clk 0:00:14]}  Ne5 {[%clk 0:00:06]} 46. Rd2 {[%clk 0:00:12]}  Kc5 {[%clk 0:00:05]} 47. Nxd3+ {[%clk 0:00:11]}  Nxd3+ {[%clk 0:00:05]} 48. Rxd3 {[%clk 0:00:12]}  Rb8 {[%clk 0:00:03]} 49. Rf3 {[%clk 0:00:12]}  Rb2+ {[%clk 0:00:03]} 50. Kg3 {[%clk 0:00:13]}  Rxa2 {[%clk 0:00:04]} 51. Rxf5+ {[%clk 0:00:13]}  Kb4 {[%clk 0:00:04]} 52. Rxh5 {[%clk 0:00:14]}  Ra3+ {[%clk 0:00:04]} 53. Kg4 {[%clk 0:00:13]}  a5 {[%clk 0:00:05]} 54. Rh7 {[%clk 0:00:13]}  Ra2 {[%clk 0:00:04]} 55. Rc7 {[%clk 0:00:13]}  Rg2+ {[%clk 0:00:03]} 56. Kf3 {[%clk 0:00:13]}  Rh2 {[%clk 0:00:03]} 57. Kg3 {[%clk 0:00:14]}  Rd2 {[%clk 0:00:02]} 58. h5 {[%clk 0:00:14]}  c3 {[%clk 0:00:02]} 59. R7xc3 {[%clk 0:00:14]}  a4 {[%clk 0:00:02]} 60. Rc4+ {[%clk 0:00:14]}  Kb3 {[%clk 0:00:02]} 61. h6 {[%clk 0:00:14]}  Rd3+ {[%clk 0:00:03]} 62. Kg4 {[%clk 0:00:14]}  Rd8 {[%clk 0:00:04]} 63. Kg5 {[%clk 0:00:15]}  a3 {[%clk 0:00:03]} 64. h7 {[%clk 0:00:15]}  a2 {[%clk 0:00:03]} 65. Kh6 {[%clk 0:00:15]}  Kb2 {[%clk 0:00:04]} 66. Kg7 {[%clk 0:00:15]}  Rd7+ {[%clk 0:00:03]} 67. Kg6 {[%clk 0:00:16]}  Rd6+ {[%clk 0:00:04]} 68. Kg5 {[%clk 0:00:16]}  Rd5+ {[%clk 0:00:04]} 69. Kg4 {[%clk 0:00:17]}  Rd8 {[%clk 0:00:05]} 70. R1c2+ {[%clk 0:00:17]}  Kb1 {[%clk 0:00:05]} 71. Rc1+ {[%clk 0:00:15]}  Kb2 {[%clk 0:00:06]} 72. R4c2+ {[%clk 0:00:16]}  Kb3 {[%clk 0:00:06]} 73. Rxa2 {[%clk 0:00:16]}  Kxa2 {[%clk 0:00:06]} 74. Rh1 {[%clk 0:00:15]}  Rh8 {[%clk 0:00:07]} 75. Kf5 {[%clk 0:00:15]}  Kb3 {[%clk 0:00:07]} 76. Kg6 {[%clk 0:00:16]}  Kc4 {[%clk 0:00:08]} 77. Kg7 {[%clk 0:00:17]}  Rc8 {[%clk 0:00:08]} 78. h8=Q {[%clk 0:00:17]}  Rc7+ {[%clk 0:00:09]} 79. Kf6 {[%clk 0:00:18]}  Rc6+ {[%clk 0:00:10]} 80. Ke5 {[%clk 0:00:18]}  Rc5+ {[%clk 0:00:10]} 81. Ke4 {[%clk 0:00:19]}  Kb5 {[%clk 0:00:11]} 82. Qb8+ {[%clk 0:00:18]}  Kc6 {[%clk 0:00:11]} 83. Qc8+ {[%clk 0:00:18]}  Kb5 {[%clk 0:00:12]} 84. Rb1+ {[%clk 0:00:19]}  Ka4 {[%clk 0:00:10]} 85. Qa6+ {[%clk 0:00:19]}  Ra5 {[%clk 0:00:09]} 86. Ra1+ {[%clk 0:00:20]}  Kb3 {[%clk 0:00:09]} 87. Qxa5 {[%clk 0:00:20]}  Kc2 {[%clk 0:00:10]} 88. Qa2+ {[%clk 0:00:21]}  Kc3 {[%clk 0:00:10]} 89. Rc1+ {[%clk 0:00:21]}  Kb4 {[%clk 0:00:10]} 90. Qc4+ {[%clk 0:00:21]}  Ka5 {[%clk 0:00:10]} 91. Ra1+ {[%clk 0:00:22]}  Kb6 {[%clk 0:00:10]} 92. Ra6+ {[%clk 0:00:22]}  Kb7 {[%clk 0:00:11]} 93. Qc6+ {[%clk 0:00:23]}  Kb8 {[%clk 0:00:11]} 94. Ra8# {[%clk 0:00:24]} 1-0


[Site "https://www.chess.com"]

[Event "Titled Tuesday Blitz February 21 Early 2023"]
[White "Fiorito, Joaquin"]
[Black "Uzcategui Rodriguez, Alejandro"]
[WhiteFideId "180173"]
[BlackFideId "3903400"]
[WhiteElo "2405"]
[BlackElo "2255"]
[Result "1-0"]
[Round "01"]
[TimeControl "180+2"]
[Date "2023.02.21"]
[WhiteClock "0:00:06"]
[BlackClock "0:00:02"]

1. d4 {[%clk 0:03:00]}  Nf6 {[%clk 0:02:58]} 2. Nc3 {[%clk 0:03:00]}  e6 {[%clk 0:02:58]} 3. Bf4 {[%clk 0:03:00]}  d5 {[%clk 0:02:55]} 4. Nb5 {[%clk 0:02:59]}  Na6 {[%clk 0:02:55]} 5. e3 {[%clk 0:02:59]}  c6 {[%clk 0:02:52]} 6. Nc3 {[%clk 0:02:59]}  Qb6 {[%clk 0:02:45]} 7. Rb1 {[%clk 0:02:57]}  Bb4 {[%clk 0:02:39]} 8. Bd3 {[%clk 0:02:55]}  c5 {[%clk 0:02:28]} 9. dxc5 {[%clk 0:02:41]}  Nxc5 {[%clk 0:02:25]} 10. Ne2 {[%clk 0:02:37]}  Bd7 {[%clk 0:02:22]} 11. O-O {[%clk 0:02:34]}  Nxd3 {[%clk 0:02:10]} 12. cxd3 {[%clk 0:02:35]}  O-O {[%clk 0:02:10]} 13. a3 {[%clk 0:02:35]}  Be7 {[%clk 0:02:08]} 14. h3 {[%clk 0:02:27]}  Rfc8 {[%clk 0:01:43]} 15. Qd2 {[%clk 0:02:25]}  Be8 {[%clk 0:01:28]} 16. Rfc1 {[%clk 0:02:16]}  Nd7 {[%clk 0:01:28]} 17. b4 {[%clk 0:02:01]}  Nf8 {[%clk 0:01:21]} 18. Bh2 {[%clk 0:01:28]}  a5 {[%clk 0:01:14]} 19. bxa5 {[%clk 0:01:19]}  Qxa5 {[%clk 0:01:10]} 20. Rxb7 {[%clk 0:01:15]}  Bxa3 {[%clk 0:01:10]} 21. Ra1 {[%clk 0:01:13]}  Qc5 {[%clk 0:01:05]} 22. Rab1 {[%clk 0:01:02]}  Bc6 {[%clk 0:00:59]} 23. R7b3 {[%clk 0:00:59]}  Qe7 {[%clk 0:00:54]} 24. Nd4 {[%clk 0:00:57]}  Be8 {[%clk 0:00:50]} 25. Ndb5 {[%clk 0:00:41]}  Bxb5 {[%clk 0:00:16]} 26. Nxb5 {[%clk 0:00:41]}  e5 {[%clk 0:00:13]} 27. d4 {[%clk 0:00:28]}  e4 {[%clk 0:00:07]} 28. Rxa3 {[%clk 0:00:20]}  Rxa3 {[%clk 0:00:07]} 29. Bd6 {[%clk 0:00:21]}  Qd7 {[%clk 0:00:04]} 30. Bxa3 {[%clk 0:00:20]}  Rb8 {[%clk 0:00:04]} 31. Nc3 {[%clk 0:00:19]}  Rxb1+ {[%clk 0:00:04]} 32. Nxb1 {[%clk 0:00:20]}  Ne6 {[%clk 0:00:04]} 33. Nc3 {[%clk 0:00:19]}  h6 {[%clk 0:00:05]} 34. Qb2 {[%clk 0:00:19]}  Ng5 {[%clk 0:00:04]} 35. Qb5 {[%clk 0:00:18]}  Qa7 {[%clk 0:00:04]} 36. Qc5 {[%clk 0:00:15]}  Qb7 {[%clk 0:00:02]} 37. Qxd5 {[%clk 0:00:14]}  Qa6 {[%clk 0:00:03]} 38. Qc5 {[%clk 0:00:10]}  Qd3 {[%clk 0:00:02]} 39. Nd5 {[%clk 0:00:06]}  Qd1+ {[%clk 0:00:01]} 40. Kh2 {[%clk 0:00:06]}  Qf1 {[%clk 0:00:02]} 41. Ne7+ {[%clk 0:00:06]} 1-0


[Site "https://www.chess.com"]

[Event "Titled Tuesday Blitz February 21 Early 2023"]
[White "Corredor Castellanos, Camilo"]
[Black "Manelyuk, Daniil"]
[WhiteFideId "4425871"]
[BlackFideId "44173920"]
[WhiteElo "1957"]
[BlackElo "2302"]
[Result "1-0"]
[Round "01"]
[TimeControl "180+2"]
[Date "2023.02.21"]
[WhiteClock "0:00:24"]
[BlackClock "0:00:06"]

1. Nf3 {[%clk 0:02:59]}  d5 {[%clk 0:02:47]} 2. g3 {[%clk 0:02:57]}  c6 {[%clk 0:02:46]} 3. Bg2 {[%clk 0:02:56]}  g6 {[%clk 0:02:47]} 4. O-O {[%clk 0:02:56]}  Bg7 {[%clk 0:02:47]} 5. c4 {[%clk 0:02:57]}  Bg4 {[%clk 0:02:45]} 6. h3 {[%clk 0:02:55]}  Bxf3 {[%clk 0:02:44]} 7. Bxf3 {[%clk 0:02:55]}  e6 {[%clk 0:02:40]} 8. cxd5 {[%clk 0:02:46]}  exd5 {[%clk 0:02:35]} 9. Qb3 {[%clk 0:02:41]}  Qb6 {[%clk 0:02:33]} 10. d3 {[%clk 0:02:40]}  Ne7 {[%clk 0:02:28]} 11. Qa3 {[%clk 0:02:28]}  Na6 {[%clk 0:02:20]} 12. Bg5 {[%clk 0:02:14]}  Qb4 {[%clk 0:02:14]} 13. Qxb4 {[%clk 0:01:44]}  Nxb4 {[%clk 0:02:15]} 14. Nd2 {[%clk 0:01:42]}  h6 {[%clk 0:02:10]} 15. Bf4 {[%clk 0:01:34]}  g5 {[%clk 0:02:06]} 16. Bd6 {[%clk 0:01:33]}  Nc2 {[%clk 0:02:06]} 17. Rab1 {[%clk 0:01:30]}  Nf5 {[%clk 0:02:03]} 18. Bc5 {[%clk 0:01:23]}  b6 {[%clk 0:02:00]} 19. Rfc1 {[%clk 0:01:18]}  Ncd4 {[%clk 0:01:44]} 20. Bxd4 {[%clk 0:01:16]}  Nxd4 {[%clk 0:01:45]} 21. e3 {[%clk 0:01:17]}  Nxf3+ {[%clk 0:01:44]} 22. Nxf3 {[%clk 0:01:18]}  Kd7 {[%clk 0:01:44]} 23. b4 {[%clk 0:01:05]}  Rhe8 {[%clk 0:01:39]} 24. d4 {[%clk 0:01:02]}  f5 {[%clk 0:01:39]} 25. b5 {[%clk 0:01:01]}  Rac8 {[%clk 0:01:36]} 26. h4 {[%clk 0:00:56]}  Bf6 {[%clk 0:01:33]} 27. hxg5 {[%clk 0:00:53]}  hxg5 {[%clk 0:01:34]} 28. Kg2 {[%clk 0:00:54]}  cxb5 {[%clk 0:01:22]} 29. Rxc8 {[%clk 0:00:53]}  Rxc8 {[%clk 0:01:23]} 30. Rxb5 {[%clk 0:00:53]}  Kd6 {[%clk 0:01:24]} 31. Rb2 {[%clk 0:00:52]}  Rc3 {[%clk 0:01:19]} 32. g4 {[%clk 0:00:46]}  fxg4 {[%clk 0:00:58]} 33. Nd2 {[%clk 0:00:45]}  Ke6 {[%clk 0:00:58]} 34. Kg3 {[%clk 0:00:46]}  Kf5 {[%clk 0:00:58]} 35. Rb5 {[%clk 0:00:45]}  Rc2 {[%clk 0:00:58]} 36. Nf1 {[%clk 0:00:36]}  Ke4 {[%clk 0:00:50]} 37. Nh2 {[%clk 0:00:31]}  Rxa2 {[%clk 0:00:19]} 38. Nxg4 {[%clk 0:00:31]}  Bd8 {[%clk 0:00:19]} 39. f3+ {[%clk 0:00:27]}  Kd3 {[%clk 0:00:19]} 40. Rxd5 {[%clk 0:00:27]}  Bc7+ {[%clk 0:00:19]} 41. Ne5+ {[%clk 0:00:22]}  Bxe5+ {[%clk 0:00:17]} 42. dxe5+ {[%clk 0:00:23]}  Kc4 {[%clk 0:00:11]} 43. Rd4+ {[%clk 0:00:23]}  Kc5 {[%clk 0:00:10]} 44. e6 {[%clk 0:00:24]}  Re2 {[%clk 0:00:08]} 45. Re4 {[%clk 0:00:25]}  g4 {[%clk 0:00:06]} 46. e7 {[%clk 0:00:24]} 1-0


[Site "https://www.chess.com"]

[Event "Titled Tuesday Blitz February 21 Early 2023"]
[White "Ibadov, Dashgyn"]
[Black "Prudnykova, Olga"]
[WhiteFideId "24107514"]
[BlackFideId "14121093"]
[WhiteElo "2391"]
[BlackElo "2268"]
[Result "1/2-1/2"]
[Round "01"]
[TimeControl "180+2"]
[Date "2023.02.21"]
[WhiteClock "0:00:03"]
[BlackClock "0:00:14"]

1. e4 {[%clk 0:02:54]}  c5 {[%clk 0:02:59]} 2. Nf3 {[%clk 0:02:53]}  Nf6 {[%clk 0:02:57]} 3. Nc3 {[%clk 0:02:53]}  e6 {[%clk 0:02:55]} 4. d4 {[%clk 0:02:52]}  cxd4 {[%clk 0:02:56]} 5. Nxd4 {[%clk 0:02:53]}  Nc6 {[%clk 0:02:56]} 6. Ndb5 {[%clk 0:02:52]}  Bc5 {[%clk 0:02:55]} 7. Bf4 {[%clk 0:02:49]}  O-O {[%clk 0:02:54]} 8. Bc7 {[%clk 0:02:49]}  Qe7 {[%clk 0:02:54]} 9. Bd6 {[%clk 0:02:50]}  Bxd6 {[%clk 0:02:53]} 10. Qxd6 {[%clk 0:02:51]}  Qd8 {[%clk 0:02:53]} 11. Nc7 {[%clk 0:02:50]}  Rb8 {[%clk 0:02:52]} 12. Be2 {[%clk 0:02:49]}  b5 {[%clk 0:02:46]} 13. e5 {[%clk 0:02:36]}  b4 {[%clk 0:02:45]} 14. exf6 {[%clk 0:02:35]}  bxc3 {[%clk 0:02:44]} 15. fxg7 {[%clk 0:02:32]}  Kxg7 {[%clk 0:02:37]} 16. Qg3+ {[%clk 0:02:21]}  Kh8 {[%clk 0:02:28]} 17. Qxc3+ {[%clk 0:02:20]}  e5 {[%clk 0:02:20]} 18. Nd5 {[%clk 0:02:16]}  Nd4 {[%clk 0:02:12]} 19. Bc4 {[%clk 0:01:54]}  Bb7 {[%clk 0:02:08]} 20. Rd1 {[%clk 0:01:35]}  Rc8 {[%clk 0:02:03]} 21. Rxd4 {[%clk 0:01:26]}  exd4 {[%clk 0:02:03]} 22. Qxd4+ {[%clk 0:01:27]}  f6 {[%clk 0:02:02]} 23. Ne3 {[%clk 0:01:24]}  Qa5+ {[%clk 0:01:44]} 24. c3 {[%clk 0:01:24]}  d5 {[%clk 0:01:36]} 25. Bb3 {[%clk 0:01:19]}  Qb6 {[%clk 0:01:29]} 26. Qxb6 {[%clk 0:01:12]}  axb6 {[%clk 0:01:29]} 27. O-O {[%clk 0:00:57]}  Rcd8 {[%clk 0:01:27]} 28. Rd1 {[%clk 0:00:54]}  Rfe8 {[%clk 0:01:07]} 29. h3 {[%clk 0:00:34]}  Re5 {[%clk 0:01:05]} 30. Rd2 {[%clk 0:00:25]}  h5 {[%clk 0:01:01]} 31. h4 {[%clk 0:00:21]}  Re4 {[%clk 0:00:55]} 32. g3 {[%clk 0:00:20]}  Re5 {[%clk 0:00:54]} 33. Bd1 {[%clk 0:00:19]}  Kg7 {[%clk 0:00:52]} 34. Bf3 {[%clk 0:00:18]}  Rd7 {[%clk 0:00:50]} 35. Nc2 {[%clk 0:00:18]}  Kg6 {[%clk 0:00:43]} 36. Nd4 {[%clk 0:00:18]}  Re1+ {[%clk 0:00:43]} 37. Kg2 {[%clk 0:00:18]}  Ra1 {[%clk 0:00:43]} 38. a3 {[%clk 0:00:18]}  Re1 {[%clk 0:00:42]} 39. Ne2 {[%clk 0:00:18]}  Rb1 {[%clk 0:00:38]} 40. Nf4+ {[%clk 0:00:18]}  Kf5 {[%clk 0:00:37]} 41. Nxh5 {[%clk 0:00:17]}  Kg6 {[%clk 0:00:37]} 42. Nf4+ {[%clk 0:00:17]}  Kf7 {[%clk 0:00:37]} 43. h5 {[%clk 0:00:17]}  Kg7 {[%clk 0:00:36]} 44. c4 {[%clk 0:00:14]}  d4 {[%clk 0:00:33]} 45. Bxb7 {[%clk 0:00:14]}  Rxb7 {[%clk 0:00:33]} 46. b4 {[%clk 0:00:09]}  Rb3 {[%clk 0:00:29]} 47. Ne6+ {[%clk 0:00:09]}  Kh6 {[%clk 0:00:28]} 48. Nxd4 {[%clk 0:00:09]}  Rxa3 {[%clk 0:00:28]} 49. g4 {[%clk 0:00:10]}  Ra4 {[%clk 0:00:24]} 50. b5 {[%clk 0:00:09]}  Rxc4 {[%clk 0:00:23]} 51. f4 {[%clk 0:00:10]}  Rc5 {[%clk 0:00:17]} 52. Kg3 {[%clk 0:00:09]}  Kh7 {[%clk 0:00:17]} 53. Nf5 {[%clk 0:00:05]}  Rxb5 {[%clk 0:00:16]} 54. Rd6 {[%clk 0:00:06]}  Rxf5 {[%clk 0:00:11]} 55. gxf5 {[%clk 0:00:05]}  Kg7 {[%clk 0:00:11]} 56. h6+ {[%clk 0:00:02]}  Kxh6 {[%clk 0:00:11]} 57. Rxf6+ {[%clk 0:00:02]}  Kg7 {[%clk 0:00:11]} 58. Rg6+ {[%clk 0:00:02]}  Kf7 {[%clk 0:00:12]} 59. Rh6 {[%clk 0:00:02]}  Kf8 {[%clk 0:00:12]} 60. Rh2 {[%clk 0:00:01]}  b5 {[%clk 0:00:12]} 61. Rb2 {[%clk 0:00:01]}  b4 {[%clk 0:00:12]} 62. Rb3 {[%clk 0:00:02]}  Kf7 {[%clk 0:00:13]} 63. Kf3 {[%clk 0:00:03]}  Kf6 {[%clk 0:00:13]} 64. Ke4 {[%clk 0:00:04]}  Rb5 {[%clk 0:00:13]} 65. Kd4 {[%clk 0:00:04]}  Rxf5 {[%clk 0:00:13]} 66. Kc4 {[%clk 0:00:04]}  Rxf4+ {[%clk 0:00:14]} 67. Kb5 {[%clk 0:00:05]}  Rf5+ {[%clk 0:00:14]} 68. Kxb4 {[%clk 0:00:03]} 1/2-1/2


[Site "https://www.chess.com"]

[Event "Titled Tuesday Blitz February 21 Early 2023"]
[White "Gamage, Wanshini Vidusama"]
[Black "Sharapov, Evgeny"]
[WhiteFideId "9953752"]
[BlackFideId "14103133"]
[WhiteElo "1089"]
[BlackElo "2375"]
[Result "1/2-1/2"]
[Round "01"]
[TimeControl "180+2"]
[Date "2023.02.21"]
[WhiteClock "0:00:16"]
[BlackClock "0:00:12"]

1. e4 {[%clk 0:02:58]}  c5 {[%clk 0:02:59]} 2. Nf3 {[%clk 0:02:57]}  d6 {[%clk 0:02:59]} 3. d4 {[%clk 0:02:57]}  cxd4 {[%clk 0:02:59]} 4. Nxd4 {[%clk 0:02:58]}  Nf6 {[%clk 0:02:59]} 5. Nc3 {[%clk 0:02:58]}  Nc6 {[%clk 0:02:59]} 6. Bg5 {[%clk 0:02:57]}  e6 {[%clk 0:02:59]} 7. Qd2 {[%clk 0:02:53]}  Be7 {[%clk 0:02:59]} 8. O-O-O {[%clk 0:02:53]}  O-O {[%clk 0:02:59]} 9. h4 {[%clk 0:02:49]}  Nxd4 {[%clk 0:02:59]} 10. Qxd4 {[%clk 0:02:49]}  Qa5 {[%clk 0:02:59]} 11. Kb1 {[%clk 0:02:36]}  Rd8 {[%clk 0:02:58]} 12. f3 {[%clk 0:02:21]}  Bd7 {[%clk 0:02:54]} 13. Bd2 {[%clk 0:02:18]}  Qc5 {[%clk 0:02:52]} 14. Qxc5 {[%clk 0:02:13]}  dxc5 {[%clk 0:02:52]} 15. g4 {[%clk 0:02:14]}  Bc6 {[%clk 0:02:49]} 16. Be2 {[%clk 0:02:05]}  Rd7 {[%clk 0:02:36]} 17. Be3 {[%clk 0:02:01]}  Rad8 {[%clk 0:02:33]} 18. Kc1 {[%clk 0:02:01]}  b6 {[%clk 0:02:25]} 19. Rxd7 {[%clk 0:02:00]}  Rxd7 {[%clk 0:02:24]} 20. Rd1 {[%clk 0:02:00]}  Rxd1+ {[%clk 0:02:23]} 21. Kxd1 {[%clk 0:02:01]}  Nd7 {[%clk 0:02:09]} 22. Kd2 {[%clk 0:01:49]}  Kf8 {[%clk 0:02:07]} 23. h5 {[%clk 0:01:49]}  h6 {[%clk 0:02:06]} 24. b3 {[%clk 0:01:40]}  Bf6 {[%clk 0:02:00]} 25. a4 {[%clk 0:01:35]}  Ke7 {[%clk 0:01:59]} 26. Bb5 {[%clk 0:01:28]}  Bb7 {[%clk 0:01:56]} 27. Bxd7 {[%clk 0:01:24]}  Kxd7 {[%clk 0:01:56]} 28. Nb5 {[%clk 0:01:25]}  a6 {[%clk 0:01:53]} 29. Na3 {[%clk 0:01:25]}  Be7 {[%clk 0:01:35]} 30. Nc4 {[%clk 0:01:17]}  b5 {[%clk 0:01:34]} 31. Nb6+ {[%clk 0:01:17]}  Kc7 {[%clk 0:01:31]} 32. a5 {[%clk 0:01:18]}  Bc6 {[%clk 0:01:26]} 33. c3 {[%clk 0:01:08]}  f5 {[%clk 0:01:24]} 34. gxf5 {[%clk 0:01:04]}  exf5 {[%clk 0:01:23]} 35. Kd3 {[%clk 0:00:58]}  fxe4+ {[%clk 0:01:23]} 36. fxe4 {[%clk 0:00:56]}  Kb7 {[%clk 0:01:19]} 37. Bf4 {[%clk 0:00:41]}  Be8 {[%clk 0:01:18]} 38. Be5 {[%clk 0:00:37]}  Bxh5 {[%clk 0:01:16]} 39. Bxg7 {[%clk 0:00:37]}  Bg5 {[%clk 0:01:11]} 40. e5 {[%clk 0:00:36]}  Bg6+ {[%clk 0:01:09]} 41. Ke2 {[%clk 0:00:33]}  Kc6 {[%clk 0:01:07]} 42. c4 {[%clk 0:00:30]}  b4 {[%clk 0:01:06]} 43. Bf8 {[%clk 0:00:26]}  Bc2 {[%clk 0:01:01]} 44. e6 {[%clk 0:00:23]}  Bg6 {[%clk 0:00:51]} 45. Kf3 {[%clk 0:00:22]}  h5 {[%clk 0:00:43]} 46. e7 {[%clk 0:00:20]}  Be8 {[%clk 0:00:40]} 47. Ke4 {[%clk 0:00:19]}  Kd6 {[%clk 0:00:36]} 48. Kf5 {[%clk 0:00:19]}  Bh4 {[%clk 0:00:24]} 49. Nc8+ {[%clk 0:00:20]}  Kd7 {[%clk 0:00:22]} 50. Nb6+ {[%clk 0:00:20]}  Kc6 {[%clk 0:00:22]} 51. Nd5 {[%clk 0:00:19]}  Kd6 {[%clk 0:00:12]} 52. Nb6 {[%clk 0:00:16]}  Kc6 {[%clk 0:00:11]} 53. Nd5 {[%clk 0:00:16]}  Kd6 {[%clk 0:00:11]} 54. Nb6 {[%clk 0:00:16]}  Kc6 {[%clk 0:00:12]} 1/2-1/2


[Site "https://www.chess.com"]

[Event "Titled Tuesday Blitz February 21 Early 2023"]
[White "Ambartsumova, Karina"]
[Black "Sovetbekova, Nurai"]
[WhiteFideId "4166299"]
[BlackFideId "13801910"]
[WhiteElo "2393"]
[BlackElo "1764"]
[Result "0-1"]
[Round "01"]
[TimeControl "180+2"]
[Date "2023.02.21"]
[WhiteClock "0:00:31"]
[BlackClock "0:00:05"]

1. Nf3 {[%clk 0:03:00]}  Nf6 {[%clk 0:02:49]} 2. c4 {[%clk 0:03:00]}  g6 {[%clk 0:02:46]} 3. d4 {[%clk 0:02:54]}  Bg7 {[%clk 0:02:46]} 4. Nc3 {[%clk 0:02:54]}  d5 {[%clk 0:02:45]} 5. cxd5 {[%clk 0:02:51]}  Nxd5 {[%clk 0:02:46]} 6. e4 {[%clk 0:02:51]}  Nxc3 {[%clk 0:02:46]} 7. bxc3 {[%clk 0:02:52]}  c5 {[%clk 0:02:46]} 8. Bg5 {[%clk 0:02:53]}  O-O {[%clk 0:02:40]} 9. Rc1 {[%clk 0:02:52]}  Qa5 {[%clk 0:02:31]} 10. Qd2 {[%clk 0:02:45]}  Bg4 {[%clk 0:02:06]} 11. d5 {[%clk 0:02:30]}  f5 {[%clk 0:01:32]} 12. Bd3 {[%clk 0:02:18]}  fxe4 {[%clk 0:01:01]} 13. Bxe4 {[%clk 0:02:19]}  Qc7 {[%clk 0:01:01]} 14. O-O {[%clk 0:02:15]}  Na6 {[%clk 0:01:00]} 15. Bh6 {[%clk 0:02:00]}  Rad8 {[%clk 0:00:56]} 16. Bxg7 {[%clk 0:01:57]}  Kxg7 {[%clk 0:00:57]} 17. Qg5 {[%clk 0:01:57]}  Bxf3 {[%clk 0:00:39]} 18. Bxf3 {[%clk 0:01:56]}  Rf5 {[%clk 0:00:30]} 19. Qg3 {[%clk 0:01:56]}  Qxg3 {[%clk 0:00:26]} 20. hxg3 {[%clk 0:01:57]}  Nc7 {[%clk 0:00:26]} 21. c4 {[%clk 0:01:57]}  e6 {[%clk 0:00:26]} 22. dxe6 {[%clk 0:01:49]}  Nxe6 {[%clk 0:00:26]} 23. Bxb7 {[%clk 0:01:49]}  Rd2 {[%clk 0:00:25]} 24. a4 {[%clk 0:01:41]}  Nd4 {[%clk 0:00:20]} 25. Bf3 {[%clk 0:01:38]}  Nxf3+ {[%clk 0:00:18]} 26. gxf3 {[%clk 0:01:39]}  Rxf3 {[%clk 0:00:19]} 27. Rb1 {[%clk 0:01:39]}  Rc2 {[%clk 0:00:17]} 28. Kg2 {[%clk 0:01:32]}  Rf7 {[%clk 0:00:14]} 29. a5 {[%clk 0:01:11]}  Rxc4 {[%clk 0:00:14]} 30. Rb5 {[%clk 0:01:04]}  Rc2 {[%clk 0:00:12]} 31. a6 {[%clk 0:01:03]}  Ra2 {[%clk 0:00:12]} 32. Rxc5 {[%clk 0:01:03]}  Rxa6 {[%clk 0:00:13]} 33. f4 {[%clk 0:00:59]}  Ra2+ {[%clk 0:00:12]} 34. Kh3 {[%clk 0:01:00]}  Re7 {[%clk 0:00:11]} 35. Rd1 {[%clk 0:00:57]}  h5 {[%clk 0:00:11]} 36. Kh4 {[%clk 0:00:53]}  Kh6 {[%clk 0:00:10]} 37. Kh3 {[%clk 0:00:50]}  Ree2 {[%clk 0:00:10]} 38. Rh1 {[%clk 0:00:50]}  a5 {[%clk 0:00:10]} 39. Rc6 {[%clk 0:00:49]}  Rf2 {[%clk 0:00:09]} 40. g4 {[%clk 0:00:42]}  Rf3+ {[%clk 0:00:03]} 41. Kh4 {[%clk 0:00:42]}  Rxf4 {[%clk 0:00:03]} 42. Kg3 {[%clk 0:00:33]}  Rxg4+ {[%clk 0:00:03]} 43. Kf3 {[%clk 0:00:34]}  Rb4 {[%clk 0:00:03]} 44. Rg1 {[%clk 0:00:34]}  Ra3+ {[%clk 0:00:04]} 45. Kg2 {[%clk 0:00:31]}  Rb2+ {[%clk 0:00:05]} 46. Kh1 {[%clk 0:00:31]}  Rh3# {[%clk 0:00:05]} 0-1


[Site "https://www.chess.com"]